bitfinex/quotes_ETHUSD_20251008
["timestamp","ask_amount","ask_price","bid_price","bid_amount"]
[1759887193937,20.16971237,4491.0,4490.9,2.606]
[1759887194768,2.90671237,4491.0,4490.9,2.606]
[1759887195076,17.92871237,4491.0,4490.9,2.606]
[1759887195368,2.33786388,4491.1,4490.9,2.606]
[1759887195666,2.22667557,4491.0,4490.9,2.606]
[1759887195865,2.69967557,4491.0,4490.9,2.606]
[1759887196074,2.69967557,4491.0,4490.9,0.088]
[1759887196237,2.90789778,4491.0,4490.9,2.606]
[1759887197606,2.43489778,4491.0,4490.9,2.606]
[1759887198388,0.20822221,4491.0,4490.9,2.606]
[1759887198548,0.1112,4491.1,4490.9,2.8666]
[1759887198750,0.1112,4491.1,4490.9,2.606]
[1759887199397,0.1112,4491.1,4490.9,2.62826725]
[1759887199864,0.002,4491.0,4490.9,2.606]
[1759887200981,2.22867557,4491.0,4490.9,0.088]
[1759887201161,2.70167557,4491.0,4490.9,2.606]
[1759887202250,2.70167557,4491.0,4490.9,0.088]
[1759887202251,2.90991202,4491.0,4490.9,0.088]
[1759887202451,2.90991202,4491.0,4490.9,2.606]
[1759887202452,32.90991202,4491.0,4490.9,2.606]
[1759887204793,32.90990932,4491.0,4490.9,2.606]
[1759887205591,34.82990932,4491.0,4490.9,0.088]
[1759887205754,35.30961521,4491.0,4490.9,0.088]
[1759887207288,32.27361521,4491.0,4490.9,0.088]
[1759887207497,5.30961521,4491.0,4490.9,0.088]
[1759887208296,15.75461521,4491.0,4490.9,0.088]
[1759887208507,15.27490932,4491.0,4490.9,0.088]
[1759887208888,14.74890932,4491.0,4490.9,0.088]
[1759887209090,4.82990932,4491.0,4490.9,0.088]
[1759887209290,9.25890932,4491.0,4490.9,0.088]
[1759887209518,9.25889574,4491.0,4490.9,0.088]
[1759887209817,4.35689574,4491.0,4490.9,0.088]
[1759887210025,4.35689281,4491.0,4490.9,0.088]
[1759887210197,4.82989281,4491.0,4490.9,0.088]
[1759887211219,4.35689281,4491.0,4490.9,0.088]
[1759887211398,2.43689281,4491.0,4490.9,0.088]
[1759887211923,2.90989281,4491.0,4490.9,0.088]
[1759887212111,3.38964947,4491.0,4490.9,0.088]
[1759887212697,2.90989281,4491.0,4490.9,0.088]
[1759887213396,2.43689281,4491.0,4490.9,0.088]
[1759887213926,2.90989281,4491.0,4490.9,0.088]
[1759887214128,3.39039153,4491.0,4490.9,0.088]
[1759887216542,35.31039153,4491.0,4490.9,0.088]
[1759887218597,35.90749839,4491.0,4490.9,0.088]
[1759887219329,35.31039153,4491.0,4490.9,0.088]
[1759887219743,5.31039153,4491.0,4490.9,0.088]
[1759887220225,27.71539153,4491.0,4490.9,0.088]
[1759887221525,0.69071596,4491.0,4490.9,0.088]
[1759887221745,0.21021724,4491.0,4490.9,0.088]
[1759887221897,0.002,4491.0,4490.9,0.088]
[1759887223130,0.21021724,4491.0,4490.9,0.088]
[1759887223495,0.002,4491.0,4490.9,0.088]
[1759887223931,0.002,4491.0,4490.9,0.32181376]
[1759887224236,0.002,4491.0,4490.9,0.088]
[1759887224439,0.002,4491.0,4490.9,0.5377]
[1759887228454,0.002,4491.0,4490.9,2.76442515]
[1759887229048,0.002,4491.0,4490.9,6.73263877]
[1759887229254,0.002,4491.0,4490.9,7.63090877]
[1759887229640,0.002,4491.0,4490.9,22.13090877]
[1759887230711,0.002,4491.0,4490.9,15.91827]
[1759887231011,0.002,4491.0,4490.9,20.66299515]
[1759887232618,0.002,4491.0,4490.9,24.52000877]
[1759887232815,0.002,4491.0,4490.9,10.02000877]
[1759887233220,0.002,4491.0,4490.9,26.44000877]
[1759887240825,0.002,4491.0,4490.9,26.55120877]
[1759887242233,0.002,4491.0,4490.9,20.17619515]
[1759887242439,0.002,4491.0,4490.9,3.32419515]
[1759887242628,0.002,4491.0,4490.9,6.27319515]
[1759887242829,0.002,4491.0,4490.9,5.37492515]
[1759887243652,0.002,4491.0,4490.9,3.1482]
[1759887243978,0.002,4491.0,4490.9,0.088]
[1759887244259,0.002,4491.0,4490.9,2.605]
[1759887244941,5.78707191,4491.0,4490.9,2.605]
[1759887245139,2.69207557,4491.0,4490.9,2.605]
[1759887245948,35.45351885,4491.0,4490.9,0.088]
[1759887246483,35.93241042,4491.0,4490.9,0.088]
[1759887247455,35.45351885,4491.0,4490.9,0.088]
[1759887248532,23.44251885,4491.0,4490.9,0.088]
[1759887248944,35.93234581,4491.0,4490.9,0.088]
[1759887251288,43.05234581,4491.0,4490.9,0.088]
[1759887252079,46.14734215,4491.0,4490.9,0.088]
[1759887255879,43.05234581,4491.0,4490.9,0.088]
[1759887256084,46.14734215,4491.0,4490.9,0.088]
[1759887257948,46.14734215,4491.0,4490.9,1e-08]
[1759887258380,46.14692203,4491.0,4490.9,1e-08]
[1759887259848,46.263221,4491.0,4490.9,1e-08]
[1759887261251,46.35244606,4491.0,4490.9,1e-08]
[1759887266092,16.35244606,4491.0,4490.9,1e-08]
[1759887266263,46.35244606,4491.0,4490.9,1e-08]
[1759887266583,39.23244606,4491.0,4490.9,1e-08]
[1759887267593,2.81527454,4491.0,4490.9,1e-08]
[1759887267894,7.83027088,4491.0,4490.9,1e-08]
[1759887268798,2.03829897,4491.0,4490.9,1e-08]
[1759887268957,4.14867557,4491.0,4490.9,1e-08]
[1759887269157,1.922,4491.0,4490.9,1e-08]
[1759887269377,0.002,4491.0,4490.9,1e-08]
[1759887270159,0.002,4491.0,4490.9,2.51800001]
[1759887270359,0.002,4491.0,4490.9,5.44065194]
[1759887270589,0.002,4491.0,4490.9,5.55185194]
[1759887271692,0.002,4491.0,4490.9,5.89325462]
[1759887272104,0.002,4491.0,4490.9,7.81325462]
[1759887273394,0.002,4491.0,4490.9,22.31325462]
[1759887275028,0.002,4491.0,4490.9,2.77212679]
[1759887275518,0.002,4491.0,4490.9,2.51800001]
[1759887275898,0.002,4491.0,4490.9,1e-08]
[1759887276211,0.002,4491.0,4490.9,2.51800001]
[1759887277504,0.002,4491.0,4490.9,2.54026726]
[1759887277678,0.002,4491.0,4490.9,2.51800001]
[1759887280524,2.22867557,4491.0,4490.9,2.51800001]
[1759887281327,2.69897557,4491.0,4490.9,1e-08]
[1759887281502,2.69897557,4491.0,4490.9,2.51800001]
[1759887283530,2.22867557,4491.0,4490.9,2.51800001]
[1759887283697,2.69077557,4491.0,4490.9,2.51800001]
[1759887285309,2.22867557,4491.0,4490.9,2.51800001]
[1759887286808,2.65847557,4491.0,4490.9,2.51800001]
[1759887289010,2.65847557,4491.0,4490.9,1e-08]
[1759887289212,2.65847557,4491.0,4490.9,2.51800001]
[1759887290142,2.65847557,4491.0,4490.9,1e-08]
[1759887290445,34.57847557,4491.0,4490.9,2.51800001]
[1759887292149,34.78644474,4491.0,4490.9,2.51800001]
[1759887293131,22.86544474,4491.0,4490.9,2.51800001]
[1759887293346,22.99044474,4491.0,4490.9,2.51800001]
[1759887294335,34.78644474,4491.0,4490.9,2.51800001]
[1759887294733,23.01444474,4491.0,4490.9,2.51800001]
[1759887295331,4.78644474,4491.0,4490.9,2.51800001]
[1759887295535,34.78644474,4491.0,4490.9,2.51800001]
[1759887296365,35.26593592,4491.0,4490.9,2.51800001]
[1759887297552,35.26593592,4491.0,4490.9,1e-08]
[1759887299957,36.49782617,4491.0,4490.9,1e-08]
[1759887300337,39.05056577,4490.4,4490.3,0.001]
[1759887300530,39.73802612,4490.4,4490.3,0.001]
[1759887300829,6.00942978,4490.4,4490.3,0.001]
[1759887301153,7.92942978,4490.4,4490.3,0.001]
[1759887301349,7.4499386,4490.4,4490.3,0.001]
[1759887301525,2.55776917,4490.4,4490.3,0.001]
[1759887301731,7.24196943,4490.4,4490.3,0.001]
[1759887302761,0.002,4491.0,4490.3,0.001]
[1759887302964,1.92,4490.9,4490.4,2.518]
[1759887303151,0.20804907,4490.8,4490.5,0.02226923]
[1759887303352,0.1112,4490.7,4490.5,0.02226923]
[1759887303671,0.002,4491.0,4490.6,0.4739]
[1759887303837,0.002,4491.0,4490.7,0.49616824]
[1759887304162,0.002,4491.0,4490.7,0.4739]
[1759887304363,0.002,4491.0,4490.8,0.02226774]
[1759887304577,0.002,4491.0,4490.8,0.49616774]
[1759887304775,0.002,4491.0,4490.8,0.02226774]
[1759887304977,0.002,4491.0,4490.9,0.4739]
[1759887309962,0.002,4491.0,4490.8,0.1112]
[1759887310884,0.002,4491.0,4490.9,2.518]
[1759887310885,2.22868092,4491.0,4490.9,2.518]
[1759887311193,0.002,4491.0,4490.9,2.518]
[1759887311493,0.09085,4491.2,4490.9,2.518]
[1759887311793,2.22667369,4491.1,4490.9,2.518]
[1759887311999,2.22667557,4491.0,4490.9,2.518]
[1759887312299,0.09085,4491.2,4490.9,2.518]
[1759887312604,2.2266333,4491.1,4490.9,2.518]
[1759887313105,0.09085,4491.2,4490.9,2.518]
[1759887313400,0.09085,4491.2,4490.9,2.7698]
[1759887313712,2.31742698,4491.2,4490.9,2.7698]
[1759887313875,0.09085,4491.2,4490.9,2.7698]
[1759887314093,2.31746689,4491.2,4490.9,2.7698]
[1759887315389,0.006,4491.3,4490.3,0.001]
[1759887315390,0.4434,4491.1,4490.3,0.001]
[1759887315697,2.2269235,4490.5,4490.3,0.001]
[1759887315866,2.22697309,4490.4,4490.3,0.001]
[1759887316195,2.67037309,4490.4,4490.3,0.001]
[1759887316691,5.07009039,4490.4,4490.3,0.001]
[1759887317056,35.07009039,4490.4,4490.3,0.001]
[1759887317960,35.70147039,4490.4,4490.3,0.001]
[1759887318205,36.50050411,4490.4,4490.3,0.001]
[1759887318398,36.58974908,4490.4,4490.3,0.001]
[1759887318566,36.5897775,4490.4,4490.3,0.001]
[1759887319671,32.86082109,4489.9,4489.8,1e-08]
[1759887319866,44.54051952,4489.9,4489.8,1e-08]
[1759887320061,44.98391952,4489.9,4489.8,1e-08]
[1759887320393,45.58259768,4489.9,4489.8,1e-08]
[1759887321288,44.98391952,4489.9,4489.8,1e-08]
[1759887321460,45.58259768,4489.9,4489.8,1e-08]
[1759887321993,15.58259768,4489.9,4489.8,1e-08]
[1759887322193,45.09851039,4489.9,4489.8,1e-08]
[1759887323197,45.09851039,4489.9,4489.1,1e-08]
[1759887323198,0.6336,4489.6,4489.1,1e-08]
[1759887323500,44.65908702,4489.2,4489.1,1e-08]
[1759887323697,47.05886681,4489.2,4489.1,1e-08]
[1759887323863,47.50226681,4489.2,4489.1,1e-08]
[1759887324063,4.781218,4489.1,4488.2,0.001]
[1759887324269,4.781218,4489.1,4488.1,1e-08]
[1759887324270,2.8616647,4488.2,4488.1,1e-08]
[1759887324487,34.7816647,4488.2,4488.1,1e-08]
[1759887324686,35.261382,4488.2,4488.1,1e-08]
[1759887325008,35.704782,4488.2,4488.1,1e-08]
[1759887325212,38.223782,4488.2,4488.1,1e-08]
[1759887325408,38.82128833,4488.2,4488.1,1e-08]
[1759887326208,38.223782,4488.2,4488.1,1e-08]
[1759887326506,38.66075175,4488.2,4488.1,1e-08]
[1759887327089,8.66075175,4488.2,4488.1,1e-08]
[1759887327285,38.66075175,4488.2,4488.1,1e-08]
[1759887327611,38.86761219,4488.2,4488.1,1e-08]
[1759887328528,35.27804244,4488.2,4488.1,1e-08]
[1759887328897,35.43192514,4488.2,4488.1,1e-08]
[1759887329121,36.17181829,4488.2,4488.1,1e-08]
[1759887330809,43.29181829,4488.2,4488.1,1e-08]
[1759887332215,36.17181829,4488.2,4488.1,1e-08]
[1759887332940,36.64722626,4488.2,4488.1,1e-08]
[1759887333224,36.17181829,4488.2,4488.1,1e-08]
[1759887335623,38.69181829,4488.2,4488.1,1e-08]
[1759887336030,39.16702026,4488.2,4488.1,1e-08]
[1759887336536,38.42712711,4488.2,4488.1,1e-08]
[1759887336897,2.22841225,4487.5,4487.4,1e-08]
[1759887337109,37.50828162,4487.5,4487.4,1e-08]
[1759887337331,37.95168162,4487.5,4487.4,1e-08]
[1759887337635,37.95171296,4487.5,4487.4,1e-08]
[1759887338132,37.74541225,4487.5,4487.4,1e-08]
[1759887339201,37.95182591,4487.5,4487.4,1e-08]
[1759887339414,37.74541225,4487.5,4487.4,1e-08]
[1759887341438,37.95204403,4487.5,4487.4,1e-08]
[1759887342251,38.42847256,4487.5,4487.4,1e-08]
[1759887343762,23.54547256,4487.5,4487.4,1e-08]
[1759887343929,19.44044403,4487.5,4487.4,1e-08]
[1759887344337,19.51379062,4487.5,4487.4,1e-08]
[1759887344830,19.29579062,4487.5,4487.4,1e-08]
[1759887345043,19.08579062,4487.5,4487.4,1e-08]
[1759887345243,12.79579062,4487.5,4487.4,1e-08]
[1759887345542,19.01779062,4487.5,4487.4,1e-08]
[1759887345946,18.50117564,4487.5,4487.4,1e-08]
[1759887346352,5.40557564,4487.5,4487.4,1e-08]
[1759887346855,2.22900831,4486.3,4486.1,0.01]
[1759887347068,38.85775671,4486.2,4486.1,0.01]
[1759887347233,39.7919033,4486.2,4486.1,0.01]
[1759887347566,35.92343637,4486.2,4486.1,0.01]
[1759887347763,11.01883637,4486.2,4486.1,0.01]
[1759887348182,11.35983637,4486.2,4486.1,0.01]
[1759887349084,10.80583637,4486.2,4486.1,0.01]
[1759887349241,11.4040199,4486.2,4486.1,0.01]
[1759887349441,20.66583637,4486.2,4486.1,0.01]
[1759887349752,28.31183637,4486.2,4486.1,0.01]
[1759887349953,18.31183637,4486.2,4486.1,0.01]
[1759887350353,18.9100199,4486.2,4486.1,0.01]
[1759887351377,18.31183637,4486.2,4486.1,0.01]
[1759887352369,19.10941441,4486.2,4486.1,0.01]
[1759887352682,36.72101441,4486.2,4486.1,0.01]
[1759887352862,35.92343637,4486.2,4486.1,0.01]
[1759887353375,2.22955498,4485.2,4484.6,0.02229854]
[1759887353676,2.43618676,4485.2,4484.6,0.02229854]
[1759887353886,0.20663178,4485.2,4484.6,0.02229854]
[1759887354239,2.43618676,4485.2,4484.7,0.4572]
[1759887354539,2.43790977,4485.2,4484.7,0.4572]
[1759887354870,2.43790977,4485.2,4484.6,1e-08]
[1759887356568,0.20835479,4485.2,4484.6,2.22980634]
[1759887356977,2.43790977,4485.2,4484.6,1e-08]
[1759887358394,0.20835479,4485.2,4484.6,1e-08]
[1759887358691,0.20835479,4485.2,4484.6,2.2521453]
[1759887358892,0.20835479,4485.2,4484.6,0.02229854]
[1759887359236,0.20835479,4485.2,4485.0,2.521]
[1759887359974,0.20835479,4485.2,4484.6,2.22983867]
[1759887360291,0.20835479,4485.2,4485.1,2.531]
[1759887360858,0.20835479,4485.2,4485.1,5.47090469]
[1759887361088,0.20835479,4485.2,4485.1,3.2413]
[1759887361301,0.20835479,4485.2,4485.1,5.49320073]
[1759887361468,0.20835479,4485.2,4485.1,5.47090469]
[1759887361989,0.20835479,4485.2,4485.1,0.01]
[1759887362388,0.20835479,4485.2,4485.1,2.531]
[1759887362582,0.20835479,4485.2,4485.1,0.01]
[1759887362780,0.20835479,4485.2,4485.1,2.531]
[1759887363220,0.2083206,4485.2,4485.1,2.531]
[1759887363618,0.20833266,4485.2,4485.1,2.531]
[1759887363824,2.43788764,4485.2,4485.1,0.01]
[1759887364033,2.89468764,4485.2,4485.1,2.531]
[1759887364330,0.20833266,4485.2,4485.1,2.531]
[1759887365797,2.43788764,4485.2,4485.1,2.531]
[1759887366893,0.20833266,4485.2,4485.1,2.531]
[1759887367393,0.20833266,4485.2,4485.1,0.01]
[1759887367394,2.43788764,4485.2,4485.1,0.01]
[1759887367621,2.43788764,4485.2,4485.1,2.531]
[1759887368733,2.89468764,4485.2,4485.1,2.531]
[1759887368890,3.37489731,4485.2,4485.1,2.531]
[1759887369526,3.37489731,4485.2,4485.1,0.01]
[1759887369527,35.29489731,4485.2,4485.1,0.01]
[1759887370098,35.92849731,4485.2,4485.1,0.01]
[1759887370301,36.52822513,4485.2,4485.1,0.01]
[1759887371231,35.92849731,4485.2,4485.1,0.01]
[1759887373327,35.92849731,4485.2,4485.1,0.011]
[1759887374727,4.78320469,4485.1,4484.6,1e-08]
[1759887374928,37.88750021,4484.7,4484.6,1e-08]
[1759887375227,38.57604254,4484.7,4484.6,1e-08]
[1759887375397,39.04694254,4484.7,4484.6,1e-08]
[1759887376213,39.1633984,4484.7,4484.6,1e-08]
[1759887377097,8.79030174,4484.7,4484.6,1e-08]
[1759887377324,6.05930174,4484.7,4484.6,1e-08]
[1759887378161,5.42570174,4484.7,4484.6,1e-08]
[1759887378364,4.94549207,4484.7,4484.6,1e-08]
[1759887378741,5.42576176,4484.7,4484.6,1e-08]
[1759887379245,4.94549207,4484.7,4484.6,1e-08]
[1759887383388,6.05921325,4484.7,4484.6,1e-08]
[1759887383663,36.05921325,4484.7,4484.6,1e-08]
[1759887385229,4.94549207,4484.7,4484.6,1e-08]
[1759887387739,5.42555228,4484.7,4484.6,1e-08]
[1759887387934,35.42555009,4484.7,4484.6,1e-08]
[1759887388353,34.94549207,4484.7,4484.6,1e-08]
[1759887388970,38.04958873,4484.7,4484.6,1e-08]
[1759887389575,38.52966266,4484.7,4484.6,1e-08]
[1759887391862,19.32366266,4484.7,4484.6,1e-08]
[1759887392169,11.78466266,4484.7,4484.6,1e-08]
[1759887392878,39.16326266,4484.7,4484.6,1e-08]
[1759887393772,9.16326266,4484.7,4484.6,1e-08]
[1759887393973,39.16326266,4484.7,4484.6,1e-08]
[1759887395170,39.76299048,4484.7,4484.6,1e-08]
[1759887395850,39.16326266,4484.7,4484.6,1e-08]
[1759887396244,39.76299048,4484.7,4484.6,1e-08]
[1759887398281,39.16326266,4484.7,4484.6,1e-08]
[1759887398850,9.16326266,4484.7,4484.6,1e-08]
[1759887399081,39.16326266,4484.7,4484.6,1e-08]
[1759887401483,39.16379868,4484.7,4484.6,1e-08]
[1759887404075,39.16379868,4484.7,4484.1,0.011]
[1759887404076,0.6336,4484.5,4484.1,1e-08]
[1759887404289,37.88774884,4484.2,4484.1,1e-08]
[1759887404594,38.57669145,4484.2,4484.1,1e-08]
[1759887404767,39.01389145,4484.2,4484.1,1e-08]
[1759887406369,39.81549555,4484.2,4484.1,1e-08]
[1759887406680,39.93197691,4484.2,4484.1,1e-08]
[1759887408654,39.13037281,4484.2,4484.1,1e-08]
[1759887410492,42.23446947,4484.2,4484.1,1e-08]
[1759887411085,9.13037281,4484.2,4484.1,1e-08]
[1759887411385,39.13037281,4484.2,4484.1,1e-08]
[1759887411689,2.23010191,4484.1,4483.6,1e-08]
[1759887411985,41.59271063,4483.7,4483.6,1e-08]
[1759887412180,42.28165324,4483.7,4483.6,1e-08]
[1759887412487,42.71305324,4483.7,4483.6,1e-08]
[1759887412881,39.00834013,4483.7,4483.6,1e-08]
[1759887413055,9.00834013,4483.7,4483.6,1e-08]
[1759887413389,42.71292143,4483.7,4483.6,1e-08]
[1759887413875,39.60882477,4483.7,4483.6,1e-08]
[1759887414766,42.71292143,4483.7,4483.6,1e-08]
[1759887416382,42.11243679,4483.7,4483.6,1e-08]
[1759887416976,0.6336,4483.1,4482.1,0.01]
[1759887417181,3.10409666,4482.5,4482.1,0.01]
[1759887417406,2.23104725,4482.2,4482.1,0.01]
[1759887417811,2.66244725,4482.2,4482.1,0.01]
[1759887419090,3.10409666,4482.5,4482.1,0.01]
[1759887419328,0.4314,4482.7,4482.1,0.01]
[1759887419503,2.23103455,4482.3,4482.1,0.01]
[1759887419715,2.66230152,4482.5,4482.1,0.01]
[1759887419892,2.23104725,4482.2,4482.1,0.01]
[1759887420524,2.66244725,4482.2,4482.1,0.01]
[1759887421993,7.68654391,4482.2,4482.1,0.01]
[1759887422225,39.00889331,4482.2,4482.1,0.01]
[1759887422389,3.10409666,4481.3,4480.5,0.097]
[1759887422590,2.23154512,4481.2,4480.5,0.097]
[1759887422918,2.66294512,4481.2,4480.5,0.097]
[1759887423085,2.66294512,4481.2,4480.4,2.522]
[1759887423286,5.21654512,4481.2,4480.1,0.01]
[1759887423628,35.21654512,4481.2,4480.2,0.087]
[1759887423919,14.89454512,4481.2,4480.2,0.087]
[1759887424086,15.32594512,4481.2,4480.2,0.087]
[1759887424731,15.32594512,4481.2,4481.1,0.011]
[1759887425119,14.24194512,4481.2,4481.1,0.011]
[1759887425488,11.579,4481.2,4481.1,0.011]
[1759887425910,1.92,4481.2,4481.1,0.011]
[1759887426225,0.6336,4481.8,4481.1,0.011]
[1759887426226,12.3441468,4482.0,4481.1,0.011]
[1759887426428,2.23140025,4481.5,4481.1,0.011]
[1759887426831,1.92,4481.8,4481.1,0.011]
[1759887426989,4.15125533,4481.8,4481.1,0.011]
[1759887427194,1.92,4481.6,4481.1,0.011]
[1759887427533,2.23148631,4481.4,4481.1,0.011]
[1759887427692,0.4314,4481.5,4481.1,0.011]
[1759887428032,2.23154512,4481.2,4481.1,0.011]
[1759887428187,4.15154512,4481.2,4481.1,0.011]
[1759887428389,2.66294512,4481.2,4481.1,0.011]
[1759887430019,2.23154512,4481.2,4481.1,0.011]
[1759887430219,34.58294512,4481.2,4481.1,0.011]
[1759887430423,29.31694512,4481.2,4481.1,0.011]
[1759887430639,15.25694512,4481.2,4481.1,0.011]
[1759887430842,4.58294512,4481.2,4481.1,0.011]
[1759887431011,4.15154512,4481.2,4481.1,0.011]
[1759887431433,4.58294512,4481.2,4481.1,0.011]
[1759887431628,4.15154512,4481.2,4481.1,0.011]
[1759887431918,1.92,4481.2,4481.1,0.011]
[1759887433035,4.15154512,4481.2,4481.1,0.011]
[1759887433859,4.58294512,4481.2,4481.1,0.011]
[1759887436030,5.4245745,4481.2,4481.1,0.011]
[1759887437556,2.56662938,4481.2,4481.1,0.011]
[1759887437926,4.7981745,4481.2,4481.1,0.011]
[1759887442183,4.3595745,4481.2,4481.1,0.011]
[1759887443147,0.20802938,4481.2,4481.1,0.011]
[1759887443443,0.40105758,4481.5,4481.1,0.2644]
[1759887443776,0.20828122,4481.4,4481.1,0.6941]
[1759887443983,0.20828122,4481.4,4481.1,0.2644]
[1759887444193,0.40105758,4481.5,4481.2,0.45201545]
[1759887444405,0.40105758,4481.5,4481.3,0.72450488]
[1759887444681,0.40105758,4481.5,4481.3,0.4297]
[1759887444885,0.40105758,4481.5,4481.1,0.2644]
[1759887445254,0.40105758,4481.5,4481.2,0.4297]
[1759887445587,0.40105758,4481.5,4481.2,2.6835112]
[1759887445790,0.40105758,4481.5,4481.3,1.96795443]
[1759887445947,0.40105758,4481.5,4481.4,0.02231445]
[1759887446148,0.40105758,4481.5,4481.4,0.4297]
[1759887446788,0.40105758,4481.5,4481.1,0.2644]
[1759887447002,2.34269532,4481.3,4481.1,0.011]
[1759887447145,2.34269532,4481.3,4481.2,2.523]
[1759887447146,0.1112,4481.3,4481.2,2.523]
[1759887447850,0.1112,4481.3,4481.2,2.9527]
[1759887448051,0.1112,4481.3,4481.2,3.47446654]
[1759887449492,0.40105758,4481.5,4481.2,3.47446654]
[1759887449698,0.40105758,4481.5,4481.3,4.30382531]
[1759887449860,0.40105758,4481.5,4481.4,2.23144553]
[1759887450059,0.40105758,4481.5,4481.4,2.66114553]
[1759887450372,0.40105758,4481.5,4481.4,3.85452333]
[1759887451295,0.40105758,4481.5,4481.4,3.87683778]
[1759887452652,0.40105758,4481.5,4481.4,3.96572333]
[1759887453050,0.40105758,4481.5,4481.4,1.3045778]
[1759887453356,0.40105758,4481.5,4481.4,5.29534553]
[1759887454856,0.40105758,4481.5,4481.4,5.29434553]
[1759887456346,0.40105758,4481.5,4481.4,4.86464553]
[1759887456781,0.40105758,4481.5,4481.4,5.29434553]
[1759887459103,0.002,4482.1,4482.0,2.2311468]
[1759887459298,0.002,4482.1,4482.0,8.62727211]
[1759887459523,0.002,4482.1,4482.0,9.19457211]
[1759887460012,0.002,4482.1,4482.0,9.71697211]
[1759887461472,0.002,4482.1,4482.0,11.63697211]
[1759887461705,0.002,4482.1,4482.0,13.02379086]
[1759887462029,0.002,4482.1,4482.0,13.46042818]
[1759887463592,0.002,4482.1,4482.0,13.54976863]
[1759887466421,0.002,4482.1,4482.0,10.39416863]
[1759887466589,0.002,4482.1,4482.0,8.95270287]
[1759887467490,0.002,4482.1,4482.0,23.45270287]
[1759887468019,0.002,4482.1,4482.0,18.57406555]
[1759887468319,0.002,4482.1,4482.0,21.09606555]
[1759887468996,0.002,4482.1,4482.0,18.57406555]
[1759887469197,0.002,4482.1,4482.0,21.09606555]
[1759887469397,0.002,4482.1,4482.0,14.9561]
[1759887469592,0.002,4482.1,4482.0,17.4831]
[1759887469798,0.002,4482.1,4482.0,17.5943]
[1759887470194,0.002,4482.1,4482.0,2.522]
[1759887470587,0.002,4482.1,4482.0,4.7531468]
[1759887470795,0.002,4482.1,4482.0,5.2142468]
[1759887472541,0.002,4482.1,4482.0,7.53112032]
[1759887473311,0.002,4482.1,4482.0,11.29404563]
[1759887473637,0.002,4482.1,4482.0,13.32524563]
[1759887474004,0.002,4482.1,4482.0,24.04046596]
[1759887474198,0.002,4482.1,4482.0,23.95112032]
[1759887476821,0.002,4482.1,4482.0,23.95212032]
[1759887478102,0.002,4482.1,4482.0,21.43012032]
[1759887478302,0.002,4482.1,4482.0,23.95212032]
[1759887481328,0.002,4482.1,4482.0,23.49102032]
[1759887481658,0.002,4482.1,4482.0,15.0733]
[1759887481953,0.002,4482.1,4482.0,17.5943]
[1759887482653,0.002,4482.1,4482.0,19.8254468]
[1759887483292,0.002,4482.1,4482.0,0.1122]
[1759887483429,0.002,4482.1,4482.0,2.6342]
[1759887483966,0.002,4482.1,4482.0,4.8653468]
[1759887484140,0.002,4482.1,4482.0,5.3264468]
[1759887484959,0.002,4482.1,4482.0,2.6332]
[1759887485343,0.002,4482.1,4482.0,4.8643468]
[1759887486843,0.002,4482.1,4482.0,5.3254468]
[1759887487044,0.002,4482.1,4482.0,10.63757574]
[1759887488073,0.002,4482.1,4482.0,5.3254468]
[1759887488573,0.002,4482.1,4482.0,19.8254468]
[1759887496576,0.002,4482.1,4482.0,21.7454468]
[1759887497586,0.002,4482.1,4482.0,21.83479244]
[1759887498994,0.002,4482.1,4482.0,25.57485289]
[1759887499301,0.002,4482.6,4482.5,7.89095838]
[1759887499465,0.002,4482.6,4482.5,10.41195838]
[1759887499655,0.002,4482.6,4482.5,10.98585838]
[1759887499858,0.002,4482.6,4482.5,11.07518985]
[1759887502069,0.002,4483.7,4482.9,2.23069887]
[1759887502269,0.002,4483.7,4483.6,5.44801106]
[1759887502479,0.002,4483.7,4483.6,7.96901106]
[1759887502689,0.002,4483.7,4483.6,22.93171106]
[1759887502895,0.002,4483.7,4483.6,23.02103176]
[1759887503190,0.002,4483.7,4483.6,19.91457131]
[1759887503396,0.002,4483.7,4483.6,25.23553087]
[1759887504000,0.002,4483.7,4483.6,22.71453087]
[1759887504204,0.002,4483.7,4483.6,22.12907042]
[1759887504704,0.002,4483.7,4483.6,25.23553087]
[1759887506310,0.002,4483.7,4483.6,28.34199132]
[1759887507005,0.002,4483.7,4483.6,30.26199132]
[1759887509374,0.002,4483.7,4483.6,30.71261042]
[1759887510035,0.002,4483.7,4483.6,31.34621042]
[1759887510526,0.40797377,4484.8,4484.1,2.23010191]
[1759887510694,0.40797377,4484.8,4484.1,8.32589067]
[1759887511004,0.01,4484.9,4484.8,2.22975383]
[1759887511203,0.01,4484.9,4484.8,22.35721428]
[1759887511397,0.01,4484.9,4484.8,22.93111428]
[1759887512224,0.01,4484.9,4484.8,23.02040627]
[1759887512428,0.01,4484.9,4484.8,17.28174582]
[1759887512626,0.01,4484.9,4484.8,19.80274582]
[1759887518737,0.01,4484.9,4484.8,24.82920627]
[1759887518935,0.01,4484.9,4484.8,21.72274582]
[1759887519908,0.002,4485.1,4485.0,2.2296544]
[1759887520211,0.002,4486.0,4485.5,2.22940586]
[1759887520416,0.002,4486.0,4485.5,9.77586631]
[1759887520617,0.002,4486.0,4485.5,10.32724315]
[1759887520944,0.002,4486.0,4485.5,26.08291489]
[1759887522155,0.002,4486.0,4485.5,23.56291489]
[1759887522343,0.002,4486.0,4485.5,26.08291489]
[1759887522653,0.002,4486.0,4485.5,26.19411489]
[1759887525224,0.002,4486.0,4485.5,23.67411489]
[1759887525438,0.002,4486.0,4485.5,26.19411489]
[1759887526229,0.002,4486.0,4485.5,23.67411489]